bitfinex/quotes_SOLUSD_20240816
["timestamp","ask_amount","ask_price","bid_price","bid_amount"]
[1723812564127,55.7502,139.8,139.72,7.157]
[1723812564435,7.1544,139.78,139.73,7.1564]
[1723812564643,7.1544,139.78,139.71,17.8935]
[1723812564644,7.1544,139.78,139.74,7.1561]
[1723812564942,7.1536,139.79,139.74,7.1561]
[1723812565252,7.1531,139.8,139.75,7.1555]
[1723812565455,24.96143709,139.85,139.75,48.3111]
[1723812565456,17.8769,139.85,139.75,48.3111]
[1723812565647,43.05,139.82,139.75,48.3111]
[1723812565831,43.05,139.82,139.72,30.2879]
[1723812566336,17.8797,139.83,139.72,30.2879]
[1723812566337,43.05,139.84,139.74,17.8894]
[1723812566539,7.1516,139.83,139.77,7.1541]
[1723812566953,7.1516,139.83,139.78,7.154]
[1723812567345,43.05,139.88,139.78,17.884]
[1723812567551,7.1509,139.85,139.8,7.153]
[1723812567852,7.1509,139.85,139.78,17.884]
[1723812567853,7.1509,139.85,139.79,7.1534]
[1723812568057,7.1511,139.84,139.79,7.1534]
[1723812570140,7.27709,139.83,139.78,25.038]
[1723812570343,0.12549,139.83,139.79,7.1535]
[1723812570520,0.25098,139.83,139.79,7.1535]
[1723812571147,0.12549,139.83,139.79,7.1535]
[1723812571856,0.12549,139.83,139.8,7.153]
[1723812572356,20.25098,139.84,139.8,7.153]
[1723812573262,27.40198,139.84,139.8,7.153]
[1723812574269,27.40198,139.84,139.81,7.1525]
[1723812574270,0.25098,139.84,139.81,7.1525]
[1723812574440,0.25098,139.84,139.8,17.8817]
[1723812574441,0.12549,139.84,139.8,17.8817]
[1723812574651,7.27659,139.84,139.8,17.8817]
[1723812574837,0.12549,139.83,139.8,17.8817]
[1723812575154,0.25098,139.83,139.8,17.8817]
[1723812575747,43.17549,139.82,139.72,42.5531]
[1723812575956,7.154,139.79,139.74,7.156]
[1723812576264,0.25098,139.78,139.74,25.046]
[1723812576866,0.25098,139.78,139.73,7.1566]
[1723812576867,7.40548,139.78,139.73,7.1566]
[1723812577168,0.12549,139.77,139.73,7.1566]
[1723812578451,0.12549,139.77,139.73,17.8903]
[1723812578958,0.12549,139.78,139.75,17.8883]
[1723812579134,0.12549,139.78,139.76,7.1548]
[1723812579533,27.1526,139.81,139.77,7.1544]
[1723812579534,20.0,139.81,139.77,7.1544]
[1723812579735,20.0,139.81,139.75,17.8883]
[1723812580266,20.0,139.81,139.78,7.154]
[1723812580439,20.0,139.81,139.79,7.1535]
[1723812580632,7.1516,139.83,139.77,17.8858]
[1723812580633,20.0,139.82,139.78,7.1539]
[1723812581141,27.152,139.82,139.78,7.1539]
[1723812581443,20.0,139.82,139.79,7.1535]
[1723812582753,20.0,139.82,139.77,17.8858]
[1723812582754,0.25098,139.81,139.77,17.8858]
[1723812582960,0.12549,139.81,139.77,17.8858]
[1723812583136,0.12549,139.8,139.76,7.1549]
[1723812583333,0.25098,139.81,139.76,7.1549]
[1723812583541,0.12549,139.8,139.76,7.1549]
[1723812583742,7.1535,139.79,139.74,25.0454]
[1723812583943,0.12549,139.77,139.68,46.3485]
[1723812584156,0.12549,139.77,139.7,7.158]
[1723812584157,7.1557,139.75,139.7,7.158]
[1723812584362,0.25098,139.74,139.7,7.158]
[1723812584969,0.25098,139.74,139.72,7.1569]
[1723812585340,20.0,139.77,139.73,7.1565]
[1723812585671,0.25098,139.76,139.73,7.1565]
[1723812585968,0.25098,139.76,139.72,25.0491]
[1723812587778,0.25098,139.76,139.68,46.3485]
[1723812587964,0.25098,139.76,139.65,10.3322813]
[1723812587965,43.05,139.74,139.65,10.3322813]
[1723812588277,7.1581,139.71,139.67,7.1596]
[1723812588441,7.1572,139.72,139.67,7.1596]
[1723812588646,0.12549,139.71,139.68,7.1591]
[1723812588971,20.0,139.73,139.7,7.158]
[1723812589266,27.156,139.75,139.7,7.158]
[1723812589440,0.25098,139.74,139.7,7.158]
[1723812590780,7.40708,139.74,139.7,7.158]
[1723812591088,0.25098,139.74,139.7,7.158]
[1723812591660,7.1547,139.77,139.72,7.157]
[1723812591862,27.1551,139.76,139.71,7.1576]
[1723812592900,27.1551,139.76,139.72,7.157]
[1723812593062,20.0,139.76,139.73,7.1565]
[1723812593368,27.1541,139.78,139.73,7.1565]
[1723812593698,27.1541,139.78,139.72,17.8923]
[1723812593699,55.2064,139.82,139.74,17.8896]
[1723812593896,7.1516,139.83,139.78,7.1539]
[1723812594061,7.1516,139.83,139.79,7.1535]
[1723812594263,7.1516,139.83,139.78,7.1539]
[1723812594987,73.2774,139.88,139.82,7.1519]
[1723812595199,73.2774,139.88,139.81,25.0336]
[1723812595200,43.05,139.88,139.81,25.0336]
[1723812595396,7.15,139.86,139.81,25.0336]
[1723812595594,50.1994,139.88,139.82,0.96522631]
[1723812595796,7.1495,139.87,139.81,17.8812]
[1723812596109,7.1495,139.87,139.82,7.1516]
[1723812596266,17.8678,139.92,139.81,17.8812]
[1723812596590,7.1494,139.88,139.83,25.0293]
[1723812596796,7.1496,139.87,139.83,17.8779]
[1723812597369,43.05,139.86,139.8,49.781]
[1723812597597,50.201,139.84,139.79,7.1535]
[1723812597778,17.8699,139.9,139.75,43.8878]
[1723812597779,43.05,139.86,139.75,43.8878]
[1723812598092,7.1499,139.87,139.79,17.8831]
[1723812598321,0.12549,139.86,139.82,7.1516]
[1723812598463,50.199,139.88,139.82,7.1516]
[1723812598464,20.12549,139.87,139.82,7.1516]
[1723812598667,20.12549,139.87,139.81,17.8804]
[1723812599007,20.12549,139.87,139.79,7.1533]
[1723812599008,7.151,139.84,139.79,7.1533]
[1723812599174,0.12549,139.83,139.75,43.8878]
[1723812599502,20.0,139.85,139.75,43.8878]
[1723812599703,0.12549,139.84,139.81,7.1524]
[1723812599889,0.25098,139.84,139.79,17.883]
[1723812600070,0.25098,139.84,139.8,7.1526]
[1723812600409,0.25098,139.84,139.79,17.883]
[1723812600778,0.25098,139.84,139.81,7.152]
[1723812601113,7.1521,139.82,139.77,7.1545]
[1723812601289,7.1521,139.82,139.75,43.8878]
[1723812601290,0.25098,139.81,139.75,43.8878]
[1723812601503,20.25098,139.81,139.75,51.0429]
[1723812601666,43.05,139.78,139.73,17.8911]
[1723812601869,0.12549,139.77,139.73,25.0477]
[1723812602070,0.25098,139.77,139.73,25.0477]
[1723812602279,0.12549,139.77,139.74,7.156]
[1723812602496,0.12549,139.77,139.73,25.0477]
[1723812602693,7.28009,139.77,139.73,25.0477]
[1723812602897,7.28059,139.76,139.71,7.1572]
[1723812603111,0.12549,139.75,139.7,17.895]
[1723812603285,20.12549,139.78,139.74,7.1559]
[1723812603602,0.12549,139.77,139.74,7.1559]
[1723812604070,7.1535,139.79,139.74,7.1559]
[1723812604071,43.05,139.84,139.74,17.8894]
[1723812604270,7.1525,139.82,139.77,7.1545]
[1723812604467,7.151,139.84,139.79,7.1535]
[1723812604669,7.1515,139.83,139.78,7.1539]
[1723812605207,7.1506,139.85,139.78,17.8845]
[1723812605677,7.1506,139.85,139.8,7.153]
[1723812606270,7.1505,139.85,139.78,17.8845]
[1723812606502,43.05,139.88,139.78,17.8845]
[1723812606691,43.05,139.84,139.75,60.0562]
[1723812606900,7.1536,139.79,139.75,47.9539]
[1723812607078,43.05,139.82,139.75,47.9539]
[1723812607282,43.05,139.8,139.72,17.8923]
[1723812607473,7.1549,139.77,139.72,25.049]
[1723812607693,0.25098,139.76,139.72,25.049]
[1723812607904,7.1561,139.75,139.69,17.8962]
[1723812608105,0.25098,139.74,139.66,45.9685]
[1723812608270,65.37647,139.74,139.66,63.8688]
[1723812608472,7.1571,139.73,139.67,7.1596]
[1723812608715,7.40818,139.72,139.67,7.1596]
[1723812609996,0.12549,139.71,139.65,10.3322813]
[1723812610210,0.25098,139.71,139.65,10.3322813]
[1723812610383,0.25098,139.7,139.65,10.3322813]
[1723812611196,7.1588,139.69,139.65,10.3322813]
[1723812611386,0.25098,139.68,139.65,10.3322813]
[1723812611978,0.25098,139.68,139.65,17.4927813]
[1723812612181,20.0,139.71,139.65,10.3322813]
[1723812612602,45.0,139.7,139.65,17.4928813]
[1723812612978,20.0,139.71,139.65,17.4928813]
[1723812612979,27.1577,139.71,139.65,17.4928813]
[1723812613172,20.0,139.71,139.65,10.3322813]
[1723812613397,7.1567,139.73,139.68,7.1587]
[1723812613709,7.1571,139.72,139.67,17.8982]
[1723812613887,7.1578,139.71,139.67,17.8982]
[1723812614297,7.1582,139.7,139.65,10.3322813]
[1723812614506,51.72,139.72,139.65,10.3322813]
[1723812614677,0.12549,139.71,139.65,10.3322813]
[1723812614879,0.25098,139.71,139.65,10.3322813]
[1723812615073,0.25098,139.7,139.65,10.3322813]
[1723812615279,7.28459,139.69,139.65,10.3322813]
[1723812615585,7.1602,139.66,139.65,10.3322813]
[1723812615814,72.53667,139.66,139.65,10.3322813]
[1723812616314,0.25098,139.66,139.65,10.3322813]
[1723812616692,45.37647,139.66,139.65,10.3322813]
[1723812617082,52.53667,139.66,139.65,10.3322813]
[1723812617327,72.66216,139.66,139.65,10.3322813]
[1723812617612,124.38216,139.66,139.65,10.3322813]
[1723812617978,135.12346,139.66,139.55,25.0802]
[1723812618310,58.8823,139.62,139.55,17.9144]
[1723812618518,7.41378,139.61,139.55,17.9144]
[1723812618978,0.12549,139.58,139.54,79.28556514]
[1723812619177,7.1654,139.56,139.54,79.28556514]
[1723812619404,7.54227,139.55,139.54,79.28556514]
[1723812619605,52.66776,139.55,139.54,79.28556514]
[1723812620300,72.66776,139.55,139.54,79.28556514]
[1723812620512,52.66776,139.55,139.54,79.28556514]
[1723812620714,72.66776,139.55,139.54,79.28556514]
[1723812621930,7.1679,139.51,139.5,0.8350588]
[1723812622134,72.54437,139.51,139.5,0.8350588]
[1723812622426,72.66986,139.51,139.5,0.8350588]
[1723812625225,20.0,139.51,139.5,0.8350588]
[1723812625439,69.6347,139.55,139.5,0.8350588]
[1723812625440,51.72,139.55,139.5,0.8350588]
[1723812625602,7.1669,139.53,139.5,0.8350588]
[1723812625807,7.1664,139.54,139.5,0.8350588]
[1723812626039,51.72,139.58,139.5,18.7552588]
[1723812626339,7.1664,139.54,139.5,18.7552588]
[1723812626718,7.1664,139.54,139.5,0.8350588]
[1723812627039,7.1665,139.54,139.5,0.8350588]
[1723812627253,17.9091,139.6,139.5,18.7560588]
[1723812627540,7.1644,139.58,139.52,7.1673]
[1723812627910,7.165,139.57,139.52,7.1673]
[1723812628111,7.1658,139.56,139.5,18.7560588]
[1723812628334,7.1658,139.56,139.5,25.9243588]
[1723812628540,7.1648,139.58,139.52,7.1673]
[1723812628717,7.1648,139.58,139.53,7.1669]
[1723812628907,7.1638,139.59,139.54,7.1663]
[1723812629110,51.72,139.63,139.54,17.9149]
[1723812629308,87.5219,139.66,139.54,17.9149]
[1723812629539,7.1627,139.62,139.57,7.1648]
[1723812630120,63.954,139.69,139.56,33.2786]
[1723812630447,7.1606,139.66,139.61,7.1627]
[1723812630806,7.1606,139.66,139.6,7.1633]
[1723812631214,51.72,139.69,139.6,17.9072]
[1723812631215,7.1597,139.67,139.6,17.9072]
[1723812631511,7.1605,139.66,139.6,25.0703]
[1723812631733,51.72,139.69,139.6,25.0703]
[1723812631734,7.1598,139.67,139.61,7.1625]
[1723812632647,0.1,141.14,139.62,17.9048]
[1723812632648,51.72,139.72,139.62,17.9048]
[1723812632847,51.72,139.72,139.63,7.1613]
[1723812633048,7.1591,139.69,139.63,7.1613]
[1723812633515,7.1591,139.69,139.64,7.1611]
[1723812633749,51.72,139.72,139.63,7.1617]
[1723812633750,7.1592,139.68,139.63,7.1617]
[1723812633951,51.72,139.69,139.62,17.9048]
[1723812634121,7.1603,139.66,139.62,17.9048]
[1723812634722,7.1587,139.69,139.64,7.1612]
[1723812634939,20.12549,139.68,139.62,17.9048]
[1723812635238,20.12549,139.68,139.63,7.1613]
[1723812635439,27.28469,139.68,139.63,7.1613]
[1723812635748,27.28469,139.68,139.62,17.9048]
[1723812635749,7.28569,139.67,139.62,17.9048]
[1723812635953,0.12549,139.66,139.62,17.9048]
[1723812636171,0.12549,139.66,139.55,63.9267]
[1723812636172,7.1649,139.57,139.52,7.1674]
[1723812636467,7.1649,139.57,139.5,43.9809588]
[1723812636468,0.12549,139.58,139.5,61.9011588]
[1723812636670,7.1664,139.54,139.5,43.9809588]
[1723812636857,7.41788,139.53,139.5,0.8350588]
[1723812637675,0.25098,139.52,139.5,0.8350588]
[1723812637881,7.54437,139.51,139.5,0.8350588]
[1723812638041,27.54437,139.51,139.5,0.8350588]
[1723812638262,20.25098,139.51,139.5,0.8350588]
[1723812638468,0.25098,139.51,139.5,0.8350588]
[1723812639150,7.41888,139.51,139.5,0.8350588]
[1723812639336,7.54437,139.51,139.5,0.8350588]
[1723812639537,52.54437,139.51,139.5,0.8350588]
[1723812639935,124.58986,139.51,139.5,0.8350588]
[1723812640762,72.66986,139.51,139.5,0.8350588]
[1723812641068,72.54437,139.51,139.5,0.8350588]
[1723812642469,65.37647,139.51,139.5,0.8350588]
[1723812642657,72.54437,139.51,139.5,0.8350588]
[1723812642862,124.58986,139.51,139.5,0.8350588]
[1723812643237,72.66986,139.51,139.5,0.8350588]
[1723812643437,65.37647,139.51,139.5,0.8350588]
[1723812643651,20.0,139.51,139.5,0.8350588]
[1723812644064,27.29339,139.51,139.5,0.8350588]
[1723812644252,72.29339,139.51,139.5,0.8350588]
[1723812645044,72.41888,139.51,139.5,0.8350588]
[1723812645248,72.66986,139.51,139.5,0.8350588]
[1723812645438,124.58986,139.51,139.5,0.8350588]
[1723812645866,27.41888,139.51,139.5,0.8350588]
[1723812646770,20.25098,139.51,139.5,0.8350588]
[1723812646973,27.41888,139.51,139.5,0.8350588]
[1723812647765,72.54437,139.51,139.5,0.8350588]
[1723812647971,27.54437,139.51,139.5,0.8350588]
[1723812648172,72.54437,139.51,139.5,0.8350588]
[1723812648671,72.66986,139.51,139.5,0.8350588]
[1723812648874,27.54437,139.51,139.5,0.8350588]
[1723812649054,27.41888,139.51,139.5,0.8350588]
[1723812649248,20.12549,139.51,139.5,0.8350588]
[1723812649447,20.0,139.51,139.5,0.8350588]
[1723812649747,7.1669,139.53,139.5,0.8350588]
[1723812649954,20.0,139.63,139.5,0.8350588]
[1723812650166,7.1657,139.56,139.51,7.1678]
[1723812650576,7.1657,139.56,139.51,25.0876]
[1723812651151,51.92,139.61,139.51,61.3887]
[1723812651376,7.1642,139.59,139.54,7.1663]
[1723812651667,51.92,139.61,139.54,7.1663]
[1723812651866,7.1648,139.57,139.53,7.1669]
[1723812652177,7.1679,139.51,139.5,0.8350588]
[1723812652871,7.29339,139.51,139.5,0.8350588]
[1723812653254,72.66986,139.51,139.5,0.8350588]
[1723812654382,72.66986,139.51,139.42,33.0941]
[1723812654383,0.12549,139.5,139.42,33.0941]
[1723812654684,7.1711,139.45,139.42,33.0941]
[1723812654845,0.25098,139.44,139.42,33.0941]
[1723812655041,7.42248,139.44,139.42,33.0941]
[1723812655253,7.42248,139.44,139.39,20.0078]
[1723812655254,7.173,139.42,139.37,49.2703]
[1723812655453,65.0,139.43,139.37,49.2703]
[1723812655454,0.25098,139.41,139.37,56.4453]
[1723812655658,0.25098,139.41,139.37,49.2703]
[1723812656047,0.25098,139.41,139.36,0.8350588]
[1723812656248,0.25098,139.4,139.36,0.8350588]
[1723812656475,0.12549,139.39,139.36,0.8350588]
[1723812656779,7.30009,139.38,139.36,0.8350588]
[1723812656985,0.25098,139.37,139.36,0.8350588]
[1723812657184,7.42608,139.37,139.36,0.8350588]
[1723812657398,52.55157,139.37,139.36,0.8350588]
[1723812657892,7.55157,139.37,139.36,0.8350588]
[1723812659220,52.55157,139.37,139.36,0.8350588]
[1723812659586,72.67706,139.37,139.36,0.8350588]
[1723812661218,27.55157,139.37,139.36,0.8350588]
[1723812661733,69.853,139.41,139.36,0.8350588]
[1723812662024,20.0,139.4,139.36,0.8350588]
[1723812662196,73.4734,139.44,139.36,0.8350588]
[1723812662197,43.32,139.44,139.36,0.8350588]
[1723812662388,43.32,139.44,139.36,18.7731588]
[1723812662591,7.1735,139.41,139.36,25.9486588]
[1723812663301,43.32,139.44,139.36,0.8350588]
[1723812663517,43.32,139.4,139.36,0.8350588]
[1723812663681,0.12549,139.39,139.36,0.8350588]
[1723812664086,0.12549,139.4,139.36,0.8350588]
[1723812664391,0.12549,139.41,139.36,0.8350588]
[1723812664623,0.12549,139.37,139.36,0.8350588]
[1723812665218,0.25098,139.37,139.36,0.8350588]
[1723812665516,24.42418017,139.43,139.36,0.8350588]
[1723812665725,59.1616,139.44,139.36,0.8350588]
[1723812665885,51.99,139.47,139.37,57.48]
[1723812666087,4.42545958,139.46,139.38,7.1744]
[1723812666306,17.9287,139.45,139.37,32.368]
[1723812666537,51.99,139.47,139.37,32.368]
[1723812666538,7.1715,139.44,139.39,7.1736]
[1723812666754,51.99,139.47,139.37,32.368]
[1723812667040,51.99,139.47,139.4,17.9339]
[1723812667350,32.3783,139.54,139.42,17.9305]
[1723812667506,32.3783,139.54,139.38,12.616]
[1723812667507,59.158,139.51,139.44,17.9275]
[1723812667861,51.99,139.51,139.44,17.9275]
[1723812668709,7.1688,139.5,139.45,7.171]
[1723812668906,7.1688,139.5,139.39,35.8699]
[1723812668907,71.99,139.63,139.47,51.99]
[1723812669121,4.43198178,139.62,139.48,0.37647]
[1723812669327,7.1622,139.63,139.51,0.12549]
[1723812669502,7.1622,139.63,139.51,45.96700911]
[1723812669703,7.1622,139.63,139.57,7.1648]
[1723812669956,7.1624,139.62,139.57,17.9121]
[1723812670118,7.1617,139.63,139.57,25.0768]
[1723812670704,7.1624,139.62,139.57,17.9121]
[1723812672235,51.99,139.65,139.57,17.9121]
[1723812672424,7.1607,139.65,139.59,7.1638]
[1723812674126,58.68672032,139.72,139.6,18.79343478]
[1723812674313,51.99,139.72,139.64,7.1612]
[1723812674526,51.99,139.72,139.62,17.9044]
[1723812674527,51.99,139.72,139.63,7.1617]
[1723812674850,51.99,139.72,139.64,7.1612]
[1723812675413,51.99,139.72,139.63,7.1617]
[1723812675913,51.99,139.72,139.62,25.0665]
[1723812676440,59.46354265,139.72,139.56,42.2402]
[1723812676646,59.46354265,139.72,139.61,7.1623]
[1723812676647,51.99,139.69,139.61,7.1623]
[1723812676808,51.99,139.69,139.6,17.9073]
[1723812676809,45.0,139.68,139.6,17.9073]
[1723812677239,20.12549,139.67,139.62,7.1622]
[1723812677425,72.24098,139.67,139.57,17.9118]
[1723812677628,45.0,139.66,139.58,7.1639]
[1723812677821,0.12549,139.65,139.57,17.9118]
[1723812678127,20.25098,139.65,139.6,7.1632]
[1723812678336,20.25098,139.65,139.57,17.9118]
[1723812678337,45.12549,139.64,139.59,7.1638]
[1723812678539,20.25098,139.63,139.59,7.1638]
[1723812678847,20.25098,139.63,139.59,7.1637]
[1723812679048,27.41278,139.63,139.57,17.9118]
[1723812679221,27.41278,139.63,139.58,7.1642]
[1723812679628,20.25098,139.63,139.57,17.9118]
[1723812679836,51.99,139.7,139.6,17.9082]
[1723812680132,20.0,139.69,139.61,7.1623]
[1723812680325,7.1603,139.66,139.61,7.1623]
[1723812680521,27.1607,139.65,139.6,25.0714]
[1723812680730,20.0,139.64,139.6,25.0714]
[1723812681126,0.12549,139.63,139.6,25.0714]
[1723812681443,0.25098,139.63,139.6,25.0714]
[1723812681953,0.25098,139.63,139.61,7.1627]
[1723812682311,0.25098,139.63,139.6,25.0714]
[1723812682751,0.12549,139.63,139.6,25.0714]
[1723812683120,20.0,139.64,139.61,7.1626]
[1723812683320,7.1593,139.68,139.63,7.1617]
[1723812683523,20.0,139.67,139.63,7.1617]
[1723812683734,7.1588,139.69,139.64,7.1611]
[1723812683924,7.1592,139.68,139.63,7.1616]
[1723812684129,7.1597,139.67,139.62,25.0669]
[1723812684446,7.1607,139.65,139.6,7.1632]
[1723812684647,0.12549,139.64,139.6,7.1632]
[1723812684850,0.12549,139.64,139.61,7.1627]
[1723812684851,0.25098,139.64,139.61,7.1627]
[1723812685053,20.0,139.66,139.62,7.1619]
[1723812685256,0.12549,139.65,139.62,7.1619]
[1723812685547,0.12549,139.65,139.61,25.0688]
[1723812685746,7.28619,139.65,139.61,17.9062]
[1723812686651,0.12549,139.64,139.61,17.9062]
[1723812687032,7.28709,139.64,139.57,17.9109]
[1723812687232,0.12549,139.63,139.6,7.1631]
[1723812687718,0.25098,139.64,139.6,7.1631]
[1723812688054,0.25098,139.64,139.61,25.0691]
[1723812688234,0.25098,139.64,139.58,17.9103]
[1723812688433,7.41178,139.65,139.6,7.1631]
[1723812688634,0.25098,139.65,139.6,17.9075]
[1723812689035,20.0,139.66,139.63,7.1616]
[1723812689358,27.1597,139.67,139.63,7.1616]
[1723812689526,27.1597,139.67,139.62,25.0671]
[1723812689723,20.0,139.67,139.63,7.1617]
[1723812690160,20.0,139.67,139.64,7.1612]
[1723812690356,7.1588,139.69,139.64,7.1612]
[1723812690559,7.1593,139.68,139.64,7.1612]
[1723812691257,7.1593,139.68,139.63,7.1616]
[1723812691856,7.1593,139.68,139.64,7.1611]
[1723812691857,0.25098,139.67,139.64,7.1611]
[1723812692157,20.25098,139.67,139.64,7.1611]
[1723812692366,0.25098,139.67,139.64,7.1611]
[1723812692538,20.25098,139.68,139.64,7.1611]
[1723812692741,20.25098,139.68,139.65,7.1605]
[1723812692938,7.1583,139.7,139.66,7.1601]
[1723812693562,7.1576,139.72,139.67,7.1594]
[1723812693736,7.1565,139.74,139.68,17.8974]
[1723812694060,43.15,139.75,139.65,62.0667]
[1723812694229,7.1577,139.71,139.66,7.1598]
[1723812694433,7.1573,139.72,139.67,7.1596]
[1723812694632,7.1577,139.71,139.67,7.1596]
[1723812695066,0.25098,139.7,139.67,7.1596]
[1723812695244,7.1573,139.72,139.68,7.1591]
[1723812695664,7.1573,139.72,139.67,7.1595]
[1723812696867,0.25098,139.71,139.67,7.1595]
[1723812697173,0.25098,139.71,139.68,7.1591]
[1723812697556,20.0,139.82,139.67,43.15]
[1723812697773,43.15,139.81,139.67,78.9472]
[1723812697967,43.15,139.81,139.7,17.8943]
[1723812698263,7.1558,139.75,139.7,25.0521]
[1723812698462,7.1558,139.75,139.66,0.12549]
[1723812698463,7.1561,139.74,139.68,7.1587]
[1723812698671,7.1561,139.74,139.69,7.1585]
[1723812698875,7.1561,139.74,139.68,7.1591]
[1723812699245,7.1561,139.74,139.69,7.1585]
[1723812699444,43.15,139.77,139.7,7.158]
[1723812699678,0.12549,139.75,139.69,7.1586]
[1723812700006,7.1562,139.74,139.67,17.8991]
[1723812700140,20.25098,139.73,139.7,7.158]
[1723812700360,0.12549,139.72,139.67,25.0586]
[1723812700761,0.25098,139.73,139.67,17.8991]
[1723812701160,0.25098,139.73,139.7,7.1578]
[1723812701642,0.12549,139.72,139.7,7.1578]
[1723812701846,0.25098,139.74,139.7,7.1578]
[1723812702254,7.1546,139.77,139.69,17.8957]
[1723812702580,43.15,139.77,139.69,17.8957]
[1723812702751,7.1573,139.72,139.67,7.1597]
[1723812702950,43.15,139.75,139.67,7.1597]
[1723812703152,7.1567,139.73,139.68,7.1591]
[1723812703560,7.1572,139.72,139.67,7.1596]
[1723812703760,7.28269,139.72,139.67,7.1596]
[1723812703964,0.12549,139.72,139.68,7.159]
[1723812704151,20.12549,139.72,139.68,7.159]
[1723812704889,20.12549,139.72,139.69,7.1586]
[1723812705058,20.12549,139.72,139.66,17.9002]
[1723812705059,20.0,139.73,139.67,35.7973]
[1723812705253,53.6425,139.82,139.68,0.12549]
[1723812705254,43.15,139.81,139.68,0.12549]
[1723812705479,7.155,139.77,139.71,7.1576]
[1723812705862,7.1541,139.78,139.72,7.1567]
[1723812706163,7.1536,139.79,139.73,7.1564]
[1723812706357,7.1536,139.79,139.74,7.1561]
[1723812707079,7.1531,139.8,139.75,7.1554]
[1723812707756,7.1556,139.76,139.72,43.8647]
[1723812707969,61.0324,139.81,139.72,43.8647]
[1723812708295,7.154,139.79,139.74,7.156]
[1723812708490,0.8350588,139.86,139.74,43.15]
[1723812708967,7.1511,139.84,139.79,7.1534]
[1723812709280,7.1505,139.85,139.8,7.1529]
[1723812710078,7.9850588,139.86,139.81,7.1525]
[1723812710391,7.9850588,139.86,139.82,17.879]
[1723812710392,0.8350588,139.86,139.82,17.879]
[1723812710551,0.8350588,139.86,139.8,30.7362]
[1723812710887,7.1515,139.84,139.8,30.7362]
[1723812711051,7.1515,139.84,139.79,37.636]
[1723812711663,0.25098,139.85,139.77,7.1541]
[1723812711889,20.12549,139.83,139.78,7.154]
[1723812712055,0.12549,139.82,139.78,7.154]
[1723812712282,0.25098,139.82,139.76,49.2782]
[1723812712503,43.15,139.79,139.72,30.4207]
[1723812712680,20.37647,139.78,139.72,30.4207]
[1723812712866,72.53057,139.78,139.72,30.4207]
[1723812713089,7.1548,139.77,139.72,30.4207]
[1723812713392,7.40628,139.76,139.72,30.4207]
[1723812713685,0.12549,139.75,139.72,30.4207]
[1723812713889,27.1545,139.78,139.72,30.4207]
[1723812714255,42.45274041,139.85,139.72,30.4207]
[1723812714256,7.1536,139.79,139.74,7.1561]
[1723812714459,7.1536,139.79,139.73,25.0481]
[1723812714658,17.8783,139.84,139.73,25.0481]
[1723812714659,7.1543,139.78,139.73,25.0481]
[1723812714911,7.1537,139.79,139.73,25.0481]
[1723812715079,7.1545,139.78,139.73,17.8916]
[1723812715262,17.8814,139.81,139.73,17.8916]
[1723812715467,7.1546,139.77,139.73,17.8916]
[1723812715683,7.1546,139.77,139.72,37.70319]
[1723812715684,7.1546,139.77,139.72,37.5777]
[1723812715883,7.1551,139.76,139.72,30.4207]
[1723812716094,7.1547,139.77,139.72,37.5778]
[1723812716459,7.1552,139.76,139.72,30.4207]
[1723812716671,17.8814,139.81,139.72,30.4207]
[1723812716672,0.12549,139.79,139.72,30.4207]